bitfinex/quotes_SOLUSD_20241111
["timestamp","ask_amount","ask_price","bid_price","bid_amount"]
[1731298010817,23.776884,209.39,209.33,16.7198]
[1731298010999,23.776884,209.39,209.33,30.33779]
[1731298011907,23.776884,209.39,209.33,16.7198]
[1731298012206,42.170674,209.39,209.33,16.7198]
[1731298012987,37.394874,209.39,209.32,13.61799]
[1731298013389,13.61799,209.38,209.31,13.61799]
[1731298013804,23.776884,209.37,209.31,13.61799]
[1731298014212,23.776884,209.37,209.32,4.7773]
[1731298014713,23.776884,209.38,209.32,30.33869]
[1731298017211,23.776884,209.39,209.32,30.33869]
[1731298017597,23.776884,209.39,209.32,13.61799]
[1731298018895,23.776884,209.39,209.33,4.7771]
[1731298019722,37.394874,209.39,209.33,4.7771]
[1731298021211,23.776884,209.39,209.33,30.33789]
[1731298021814,23.776884,209.4,209.33,30.33789]
[1731298022020,23.776884,209.4,209.34,13.61799]
[1731298022231,23.776884,209.41,209.34,13.61799]
[1731298022398,37.394874,209.41,209.35,4.7766]
[1731298023693,13.61799,209.39,209.33,16.7197]
[1731298024117,23.776884,209.38,209.31,13.61799]
[1731298024293,13.61799,209.37,209.29,13.61799]
[1731298024496,23.776884,209.36,209.3,16.7223]
[1731298024707,23.776884,209.36,209.31,13.61799]
[1731298024920,23.776884,209.38,209.31,13.61799]
[1731298026020,23.776884,209.38,209.32,4.7773]
[1731298027216,37.394874,209.38,209.3,25.56249]
[1731298027552,37.394874,209.38,209.32,13.61799]
[1731298029423,18.07908898,209.4,209.32,13.61799]
[1731298029605,13.61799,209.42,209.34,13.61799]
[1731298030309,13.61799,209.4,209.33,30.33789]
[1731298030699,23.776884,209.39,209.33,30.33789]
[1731298031504,13.61799,209.46,209.38,13.61799]
[1731298031715,22.6972,209.49,209.41,13.61799]
[1731298031716,13.61799,209.48,209.41,13.61799]
[1731298032314,13.61799,209.47,209.4,13.61799]
[1731298032705,13.61799,209.45,209.39,25.55729]
[1731298033109,37.394874,209.42,209.39,11.9393]
[1731298033328,13.61799,209.42,209.39,11.9393]
[1731298033920,23.776884,209.41,209.39,11.9393]
[1731298034423,23.776884,209.42,209.39,11.9393]
[1731298035624,23.776884,209.44,209.39,25.55729]
[1731298035820,13.61799,209.44,209.39,11.9393]
[1731298036018,23.776884,209.43,209.39,11.9393]
[1731298036524,23.776884,209.44,209.39,25.55729]
[1731298036728,23.776884,209.45,209.39,25.55729]
[1731298036912,23.776884,209.45,209.39,30.33299]
[1731298037111,23.776884,209.46,209.41,13.61799]
[1731298037423,23.776884,209.46,209.39,16.715]
[1731298037424,13.61799,209.46,209.39,30.33299]
[1731298037833,23.776884,209.45,209.39,30.33299]
[1731298038308,13.61799,209.46,209.39,30.33299]
[1731298038309,23.776884,209.46,209.4,13.61799]
[1731298039205,37.394874,209.46,209.39,25.55729]
[1731298039644,37.394874,209.46,209.39,30.33299]
[1731298039811,23.776884,209.46,209.39,30.33299]
[1731298040519,4.7732,209.51,209.43,13.61799]
[1731298040724,13.61799,209.5,209.43,13.61799]
[1731298040931,13.61799,209.49,209.42,13.61799]
[1731298041135,13.61799,209.49,209.42,12.11799]
[1731298041438,13.61799,209.5,209.42,12.11799]
[1731298041637,13.61799,209.49,209.43,16.7119]
[1731298041936,23.776884,209.48,209.43,16.7119]
[1731298042114,37.394874,209.47,209.41,4.7753]
[1731298042432,23.776884,209.45,209.41,4.7753]
[1731298042813,23.776884,209.46,209.41,4.7753]
[1731298043233,37.394874,209.46,209.4,11.9388]
[1731298043430,23.776884,209.44,209.4,16.7143]
[1731298043645,23.776884,209.42,209.4,11.9388]
[1731298043829,23.776884,209.44,209.4,11.9388]
[1731298043830,37.394874,209.44,209.4,11.9388]
[1731298045633,37.394874,209.44,209.37,13.61799]
[1731298045819,23.776884,209.42,209.37,4.7761]
[1731298046526,13.61799,209.41,209.36,11.9411]
[1731298046838,37.394874,209.4,209.36,11.9411]
[1731298047521,23.776884,209.4,209.36,11.9411]
[1731298047711,23.776884,209.4,209.36,16.7175]
[1731298047917,23.776884,209.42,209.36,16.7175]
[1731298048835,37.394874,209.39,209.36,11.9411]
[1731298049041,23.776884,209.38,209.36,11.9411]
[1731298049722,23.776884,209.36,209.26,16.0635]
[1731298050025,23.776884,209.33,209.28,13.61799]
[1731298050222,23.776884,209.36,209.3,13.61799]
[1731298050616,23.776884,209.37,209.31,13.61799]
[1731298050818,23.776884,209.37,209.27,16.7245]
[1731298050819,23.776884,209.37,209.3,13.61799]
[1731298051418,23.776884,209.37,209.31,16.7216]
[1731298051948,13.61799,209.37,209.31,16.7216]
[1731298052117,23.776884,209.36,209.31,16.7216]
[1731298052436,23.776884,209.32,209.31,11.944]
[1731298055826,37.394874,209.32,209.28,4.7782]
[1731298056524,23.776884,209.32,209.28,4.7782]
[1731298056925,23.776884,209.32,209.28,16.7239]
[1731298057449,23.776884,209.33,209.28,16.7239]
[1731298057744,37.394874,209.33,209.28,16.7239]
[1731298060033,13.61799,209.33,209.28,16.7239]
[1731298060234,23.776884,209.32,209.28,16.7239]
[1731298060547,13.61799,209.31,209.28,16.7239]
[1731298060741,23.776884,209.29,209.28,16.7239]
[1731298060938,23.776884,209.29,209.28,11.9457]
[1731298061949,23.776884,209.29,209.28,16.7239]
[1731298062521,23.776884,209.29,209.24,13.61799]
[1731298062753,23.776884,209.29,209.23,11.9481]
[1731298062754,37.394874,209.29,209.23,11.9481]
[1731298063049,13.61799,209.28,209.23,11.9481]
[1731298063256,23.776884,209.27,209.23,11.9481]
[1731298063423,23.776884,209.28,209.23,11.9481]
[1731298063750,37.394874,209.31,209.23,13.61799]
[1731298063937,23.776884,209.31,209.24,13.61799]
[1731298064244,23.776884,209.31,209.25,13.61799]
[1731298064946,23.776884,209.31,209.24,13.61799]
[1731298065253,37.394874,209.31,209.23,13.61799]
[1731298065432,37.394874,209.31,209.21,40.6289]
[1731298065760,37.394874,209.31,209.24,13.61799]
[1731298066050,37.394874,209.31,209.25,16.7263]
[1731298066648,37.394874,209.32,209.25,16.7263]
[1731298066942,13.61799,209.34,209.25,16.7263]
[1731298067157,13.61799,209.35,209.27,13.61799]
[1731298067532,13.61799,209.34,209.27,13.61799]
[1731298067932,13.61799,209.35,209.28,13.61799]
[1731298068338,37.394874,209.34,209.28,4.7781]
[1731298068650,37.394874,209.31,209.25,11.9474]
[1731298068963,23.776884,209.3,209.26,13.61799]
[1731298069332,23.776884,209.3,209.27,29.85339]
[1731298069732,23.776884,209.3,209.28,13.61799]
[1731298071658,13.61799,209.38,209.29,18.39599]
[1731298071861,13.61799,209.38,209.31,13.61799]
[1731298073559,13.61799,209.33,209.28,16.7239]
[1731298073855,23.776884,209.32,209.28,16.7239]
[1731298074041,13.61799,209.33,209.28,16.7239]
[1731298074244,23.776884,209.32,209.28,16.7239]
[1731298076050,37.394874,209.32,209.28,11.9457]
[1731298076951,13.61799,209.31,209.28,11.9457]
[1731298077255,23.776884,209.3,209.28,11.9457]
[1731298077642,37.394874,209.3,209.22,15.2333]
[1731298077855,37.394874,209.3,209.24,4.7791]
[1731298078853,23.776884,209.31,209.25,13.61799]
[1731298079468,23.776884,209.33,209.27,13.61799]
[1731298079666,23.776884,209.33,209.24,16.7271]
[1731298079960,23.776884,209.35,209.29,13.61799]
[1731298080266,13.61799,209.37,209.3,13.61799]
[1731298080466,22.6722,209.39,209.3,13.61799]
[1731298080659,36.29019,209.39,209.32,13.61799]
[1731298080843,13.61799,209.39,209.33,4.7771]
[1731298081040,13.61799,209.38,209.33,4.7771]
[1731298081957,23.776884,209.41,209.33,18.39509]
[1731298082145,23.776884,209.39,209.33,4.7771]
[1731298084062,37.394874,209.39,209.33,4.7771]
[1731298085071,0.82198306,209.48,209.38,13.61799]
[1731298085272,13.61799,209.46,209.39,13.61799]
[1731298085475,13.61799,209.46,209.38,13.61799]
[1731298085648,13.61799,209.45,209.38,13.61799]
[1731298085973,5.59578306,209.48,209.38,13.61799]
[1731298085974,13.61799,209.46,209.38,13.61799]
[1731298086338,13.61799,209.44,209.37,13.61799]
[1731298086544,23.776884,209.43,209.37,13.61799]
[1731298087359,23.776884,209.43,209.38,4.776]
[1731298088068,23.776884,209.44,209.38,18.39399]
[1731298088370,13.61799,209.47,209.39,13.61799]
[1731298088660,13.61799,209.48,209.4,13.61799]
[1731298088853,13.61799,209.47,209.4,13.61799]
[1731298089261,13.61799,209.48,209.4,13.61799]
[1731298090168,23.776884,209.47,209.4,13.61799]
[1731298090361,23.776884,209.47,209.41,4.7753]
[1731298091758,13.61799,209.46,209.39,15.2492]
[1731298091965,13.61799,209.44,209.39,15.2492]
[1731298092266,37.394874,209.43,209.36,4.7762]
[1731298092477,13.61799,209.42,209.36,4.7762]
[1731298092677,23.776884,209.41,209.36,4.7762]
[1731298093350,37.394874,209.41,209.36,4.7762]
[1731298093771,23.776884,209.41,209.36,4.7762]
[1731298093967,21.8798,209.55,209.4,13.61799]
[1731298094175,13.61799,209.5,209.43,13.61799]
[1731298094475,13.61799,209.51,209.43,13.61799]
[1731298094767,13.61799,209.5,209.43,13.61799]
[1731298094972,13.61799,209.49,209.42,13.61799]
[1731298095181,23.776884,209.48,209.43,4.7748]
[1731298096875,23.776884,209.49,209.43,13.61799]
[1731298098164,23.776884,209.49,209.43,18.39269]
[1731298098378,42.168374,209.49,209.42,30.33059]
[1731298098684,13.61799,209.48,209.42,16.7126]
[1731298098880,13.61799,209.46,209.42,11.9377]
[1731298099062,23.776884,209.45,209.42,11.9377]
[1731298099265,23.776884,209.46,209.42,11.9377]
[1731298100363,23.776884,209.46,209.41,13.61799]
[1731298100557,23.776884,209.47,209.41,13.61799]
[1731298100757,37.394874,209.47,209.4,13.61799]
[1731298101393,37.394874,209.48,209.42,4.775]
[1731298101562,13.61799,209.47,209.42,4.775]
[1731298101767,20.0,209.32,209.15,6.5639]
[1731298101967,29.13333606,209.31,209.17,13.61799]
[1731298102174,23.776884,209.26,209.19,13.61799]
[1731298103576,23.776884,209.28,209.21,13.61799]
[1731298103776,23.776884,209.3,209.21,13.61799]
[1731298103964,23.776884,209.31,209.21,13.61799]
[1731298104164,23.776884,209.3,209.25,13.61799]
[1731298104586,23.776884,209.32,209.25,13.61799]
[1731298104988,37.394874,209.32,209.24,13.61799]
[1731298106471,13.61799,209.3,209.23,13.61799]
[1731298106790,23.776884,209.29,209.23,13.61799]
[1731298107378,23.776884,209.31,209.25,13.61799]
[1731298107895,23.776884,209.32,209.25,13.61799]
[1731298109084,13.61799,209.31,209.17,0.1]
[1731298109270,23.776884,209.3,209.23,13.61799]
[1731298109788,13.61799,209.3,209.22,13.61799]
[1731298109971,23.776884,209.31,209.25,13.61799]
[1731298111080,23.776884,209.31,209.24,13.61799]
[1731298111684,23.776884,209.31,209.25,13.61799]
[1731298112582,23.776884,209.32,209.25,13.61799]
[1731298112790,37.394874,209.32,209.25,13.61799]
[1731298112970,23.776884,209.34,209.27,13.61799]
[1731298113172,23.776884,209.34,209.28,13.61799]
[1731298113369,6.2548,209.39,209.21,16.2294]
[1731298113370,13.61799,209.36,209.29,13.61799]
[1731298113822,13.61799,209.35,209.28,13.61799]
[1731298113972,13.61799,209.34,209.27,13.61799]
[1731298114567,23.776884,209.33,209.27,13.61799]
[1731298114774,23.776884,209.33,209.28,13.61799]
[1731298115194,23.776884,209.34,209.28,13.61799]
[1731298115398,37.394874,209.34,209.27,13.61799]
[1731298118097,23.776884,209.34,209.28,13.61799]
[1731298118490,23.776884,209.35,209.28,13.61799]
[1731298118791,23.776884,209.34,209.28,13.61799]
[1731298120072,23.776884,209.33,209.27,13.61799]
[1731298120793,0.1,209.24,209.07,0.8224176]
[1731298121095,23.776884,209.15,209.07,13.61799]
[1731298121685,23.776884,209.15,209.03,0.1]
[1731298122000,23.776884,209.13,209.05,13.61799]
[1731298122792,23.776884,209.13,209.07,13.61799]
[1731298124299,23.776884,209.15,209.07,13.61799]
[1731298131291,37.394874,209.15,209.08,13.61799]
[1731298134299,13.61799,209.14,209.07,13.61799]
[1731298134496,37.394874,209.15,209.08,13.61799]
[1731298135809,37.394874,209.13,209.02,5.04681534]
[1731298136107,23.776884,209.11,209.06,13.61799]
[1731298136407,23.776884,209.12,209.06,13.61799]
[1731298138081,23.776884,209.09,209.02,4.94681534]
[1731298138285,23.776884,209.09,209.05,13.61799]
[1731298138482,13.61799,209.13,209.06,13.61799]
[1731298138701,23.776884,209.12,209.06,13.61799]
[1731298139705,23.776884,209.13,209.06,13.61799]
[1731298140287,23.776884,209.13,209.07,13.61799]
[1731298140489,23.776884,209.13,209.08,13.61799]
[1731298140683,13.61799,209.16,209.09,13.61799]
[1731298141307,13.61799,209.15,209.08,13.61799]
[1731298141497,13.61799,209.16,209.09,13.61799]
[1731298141698,13.61799,209.16,209.1,13.61799]
[1731298141893,23.776884,209.15,209.09,13.61799]
[1731298142202,4.7787,209.26,209.13,13.61799]
[1731298142509,13.61799,209.2,209.13,13.61799]
[1731298143302,13.61799,209.21,209.14,13.61799]
[1731298143507,37.394874,209.2,209.13,13.61799]
[1731298144008,23.776884,209.2,209.14,13.61799]
[1731298144201,37.394874,209.2,209.13,13.61799]
[1731298144603,13.61799,209.14,209.0,0.82054777]
[1731298144906,23.776884,209.1,209.03,18.54089928]
[1731298145106,23.776884,209.1,209.03,13.61799]
[1731298145294,23.776884,209.14,209.07,13.61799]
[1731298146813,13.61799,209.13,209.05,13.61799]
[1731298147112,13.61799,209.11,209.03,13.61799]
[1731298147299,23.776884,209.1,209.03,13.61799]
[1731298148815,23.776884,209.1,209.02,21.2458]
[1731298149003,23.776884,209.1,209.03,13.61799]
[1731298149702,13.61799,209.15,209.07,13.61799]
[1731298150209,15.0888,209.08,208.96,13.61799]
[1731298150397,13.61799,209.05,208.96,13.61799]
[1731298150907,23.776884,209.04,208.96,13.61799]
[1731298151214,13.61799,209.03,208.96,13.61799]
[1731298151509,23.776884,209.02,208.96,13.61799]
[1731298152820,23.776884,209.04,208.96,13.61799]
[1731298153497,13.61799,209.05,208.96,13.61799]
[1731298153898,13.61799,209.05,208.92,0.1]
[1731298154102,13.61799,209.05,208.97,13.61799]
[1731298154304,13.61799,208.98,208.9,24.05662404]
[1731298154511,13.61799,208.94,208.82,2.11480125]
[1731298154707,13.61799,208.94,208.81,15.2188]
[1731298154708,13.61799,208.96,208.88,0.1]
[1731298154892,23.776884,208.97,208.9,13.61799]
[1731298156199,23.776884,208.97,208.84,4.9267089]
[1731298156407,23.776884,208.95,208.89,13.61799]
[1731298156617,23.776884,208.95,208.91,13.61799]
[1731298156792,13.61799,208.98,208.88,0.1]
[1731298156793,23.776884,208.97,208.88,0.1]
[1731298156994,23.776884,208.97,208.91,13.61799]
[1731298157217,23.776884,208.97,208.84,4.9267089]
[1731298157517,23.776884,208.97,208.91,13.61799]
[1731298157721,23.776884,208.99,208.91,13.61799]
[1731298159818,23.776884,208.99,208.93,13.61799]
[1731298162230,23.776884,209.0,208.93,13.61799]
[1731298162606,28.70679,209.03,208.95,13.61799]
[1731298163506,20.12699,209.04,208.97,13.61799]
[1731298163699,20.12699,209.04,208.96,13.61799]
[1731298163901,6.509,209.04,208.98,13.61799]
[1731298164102,23.776884,209.03,208.98,13.61799]
[1731298164318,23.776884,209.03,208.97,13.61799]
[1731298164717,23.776884,209.03,208.96,13.61799]
[1731298164925,23.776884,209.03,208.97,13.61799]
[1731298166304,23.776884,209.04,208.98,13.61799]
[1731298166504,23.776884,209.05,208.98,13.61799]
[1731298166711,23.776884,209.05,208.99,13.61799]
[1731298167222,23.776884,209.06,208.99,13.61799]
[1731298167418,23.776884,209.06,209.0,13.61799]
[1731298167607,15.2086,209.08,209.01,13.61799]
[1731298167808,19.9904,209.13,209.05,13.61799]
[1731298168024,19.9904,209.13,208.96,0.1]
[1731298168025,13.61799,209.12,209.04,13.61799]
[1731298168207,19.9904,209.13,209.03,13.61799]
[1731298168208,13.61799,209.11,209.03,13.61799]
[1731298168602,13.61799,209.11,209.04,13.61799]
[1731298169011,13.61799,209.11,209.03,13.61799]
[1731298169207,23.776884,209.1,209.03,13.61799]
[1731298169508,23.776884,209.1,209.04,13.61799]
[1731298170212,15.2086,209.13,209.07,13.61799]
[1731298170418,6.1133,209.14,209.08,13.61799]
[1731298170613,13.61799,209.15,209.08,13.61799]
[1731298170812,13.61799,209.14,209.07,13.61799]
[1731298171731,23.776884,209.13,209.07,13.61799]
[1731298174033,23.776884,209.13,209.0,15.3698]
[1731298174222,23.776884,209.13,209.07,13.61799]
[1731298174730,23.776884,209.17,209.08,13.61799]
[1731298175027,15.2086,209.18,209.12,13.61799]
[1731298176313,37.394874,209.17,209.1,13.61799]
[1731298176511,37.394874,209.17,209.03,0.1]
[1731298176512,37.394874,209.15,209.08,13.61799]
[1731298176821,13.61799,209.15,209.08,13.61799]
[1731298177332,23.776884,209.14,209.08,13.61799]
[1731298177829,37.394874,209.14,209.0,28.98779]
[1731298178034,23.776884,209.14,209.09,13.61799]
[1731298178215,37.394874,209.16,209.09,13.61799]
[1731298178411,23.776884,209.14,209.07,13.61799]
[1731298178922,23.776884,209.13,209.08,13.61799]
[1731298179534,37.394874,209.14,209.07,13.61799]
[1731298180131,23.776884,209.14,209.08,13.61799]
[1731298180314,23.776884,209.15,209.09,13.61799]
[1731298180628,15.2086,209.18,209.1,13.61799]
[1731298180829,37.394874,209.17,209.09,13.61799]
[1731298181128,13.61799,209.16,209.09,13.61799]
[1731298181343,23.776884,209.15,209.09,13.61799]
[1731298182533,23.776884,209.15,209.08,13.61799]
[1731298182728,23.776884,209.14,209.08,13.61799]
[1731298182916,23.776884,209.17,209.1,13.61799]
[1731298183122,23.776884,209.15,209.11,13.61799]
[1731298183436,28.82659,209.18,209.01,20.0]
[1731298183437,13.61799,209.14,209.01,20.0]
[1731298183730,23.776884,209.1,209.04,13.61799]
[1731298183928,23.776884,209.1,209.05,13.61799]
[1731298184230,37.394874,209.12,209.04,13.61799]
[1731298184618,13.61799,209.11,209.04,13.61799]
[1731298184812,23.776884,209.1,209.04,13.61799]
[1731298185225,23.776884,209.1,209.03,13.61799]
[1731298186431,23.776884,209.08,209.01,13.61799]
[1731298186819,23.776884,209.08,209.0,15.3698]
[1731298186820,23.776884,209.08,209.02,13.61799]
[1731298187140,37.394874,209.08,209.0,15.3698]
[1731298187317,37.394874,209.08,208.99,13.61799]
[1731298188532,23.776884,209.05,208.99,13.61799]
[1731298189238,23.776884,209.06,208.99,13.61799]
[1731298189930,37.394874,209.06,208.98,13.61799]
[1731298190141,13.61799,209.06,208.98,13.61799]
[1731298190324,23.776884,209.05,208.98,13.61799]
[1731298192522,37.394874,209.05,208.97,13.61799]
[1731298193534,13.61799,209.05,208.97,13.61799]
[1731298193722,23.776884,209.04,208.97,13.61799]
[1731298194446,23.776884,209.04,208.98,13.61799]
[1731298194622,23.776884,209.05,208.98,13.61799]
[1731298195444,37.394874,209.05,208.98,13.61799]
[1731298195642,13.61799,209.03,208.96,13.61799]
[1731298195946,23.776884,209.02,208.96,13.61799]
[1731298196428,37.394874,209.02,208.91,20.0]
[1731298196637,37.394874,209.0,208.93,13.61799]
[1731298197840,23.776884,209.01,208.94,13.61799]
[1731298198636,13.61799,209.01,208.94,13.61799]
[1731298198834,23.776884,209.0,208.94,13.61799]
[1731298199042,23.776884,209.01,208.95,13.61799]
[1731298199735,23.776884,209.02,208.96,13.61799]
[1731298200236,23.776884,209.03,208.97,13.61799]
[1731298200436,37.394874,209.03,208.96,13.61799]
[1731298201853,37.394874,209.03,208.95,13.61799]
[1731298202037,37.394874,209.03,208.96,13.61799]
[1731298203425,23.776884,209.03,208.97,13.61799]
[1731298203933,4.7832,209.07,209.0,13.61799]
[1731298203934,13.61799,209.07,209.0,13.61799]
[1731298204138,13.61799,209.08,209.0,13.61799]
[1731298204451,16.5291,209.09,208.94,15.0923]
[1731298204452,13.61799,209.06,208.99,13.61799]
[1731298205250,23.776884,209.05,208.99,13.61799]
[1731298207146,23.776884,209.03,208.97,13.61799]
[1731298207549,23.776884,209.03,208.98,13.61799]
[1731298207733,23.776884,209.04,208.99,13.61799]
[1731298207937,23.776884,209.05,208.99,13.61799]
[1731298208249,23.776884,209.05,208.98,13.61799]
[1731298209430,13.61799,209.04,208.97,13.61799]
[1731298209630,23.776884,209.03,208.96,13.61799]
[1731298209833,37.394874,209.01,208.92,2.10318861]
[1731298210036,23.776884,208.99,208.92,13.61799]
[1731298211754,23.776884,208.99,208.93,13.61799]
[1731298212237,23.776884,209.0,208.93,13.61799]
[1731298212954,23.776884,209.0,208.94,13.61799]
[1731298214355,23.776884,209.0,208.95,13.61799]
[1731298214741,23.776884,209.01,208.96,13.61799]
[1731298215052,23.776884,209.02,208.96,13.61799]
[1731298215255,16.5291,209.09,209.0,13.61799]
[1731298215449,13.61799,209.03,208.96,13.61799]
[1731298215657,13.61799,209.02,208.95,13.61799]
[1731298215830,13.61799,209.01,208.94,13.61799]
[1731298216034,13.61799,209.0,208.93,13.61799]
[1731298216832,23.776884,208.99,208.93,13.61799]
[1731298217027,23.776884,208.99,208.89,17.21870564]
[1731298217028,23.776884,208.99,208.92,13.61799]
[1731298217238,23.776884,208.97,208.92,20.0]
[1731298217442,23.776884,208.97,208.92,33.61799]
[1731298217843,23.776884,208.98,208.92,33.61799]
[1731298218045,23.776884,208.98,208.93,13.61799]
[1731298218259,23.776884,208.99,208.93,13.61799]
[1731298219555,23.776884,209.0,208.94,13.61799]
[1731298221840,37.394874,209.0,208.93,13.61799]
[1731298222236,23.776884,208.98,208.92,13.61799]
[1731298223161,13.61799,208.99,208.93,13.61799]
[1731298223162,23.776884,208.99,208.93,13.61799]
[1731298226253,23.776884,208.99,208.9,26.15151743]
[1731298226254,37.394874,208.99,208.92,13.61799]
[1731298226562,23.776884,208.97,208.92,13.61799]
[1731298227362,23.776884,208.98,208.92,13.61799]
[1731298228045,23.776884,208.99,208.92,13.61799]
[1731298231766,23.776884,208.99,208.94,13.61799]
[1731298232865,13.61799,209.0,208.94,13.61799]
[1731298233757,23.776884,209.02,208.94,13.61799]
[1731298233964,23.776884,209.0,208.94,13.61799]
[1731298234268,23.776884,209.01,208.94,13.61799]
[1731298234467,4.7833,209.06,208.95,13.61799]
[1731298234765,37.394874,209.02,208.95,13.61799]
[1731298235073,23.776884,209.02,208.96,13.61799]
[1731298235252,13.61799,209.05,208.97,13.61799]
[1731298235455,13.61799,209.05,208.98,13.61799]
[1731298235851,13.61799,209.05,208.97,13.61799]
[1731298236173,13.61799,209.04,208.97,13.61799]
[1731298238171,13.61799,209.04,208.96,13.61799]
[1731298238360,13.61799,209.06,208.98,13.61799]
[1731298238551,23.776884,209.05,208.98,13.61799]
[1731298238873,23.776884,209.05,208.92,0.1]
[1731298238874,13.61799,209.06,208.99,13.61799]
[1731298239064,13.61799,209.08,209.01,13.61799]
[1731298239276,13.61799,209.09,209.02,13.61799]
[1731298239765,13.61799,209.08,209.0,13.61799]
[1731298239949,13.61799,209.06,208.99,13.61799]
[1731298240154,4.782,209.12,208.97,15.5596]
[1731298240155,13.61799,209.07,209.0,13.61799]
[1731298240971,13.61799,209.08,209.01,13.61799]
[1731298241559,13.61799,209.09,209.01,13.61799]
[1731298242475,37.394874,209.11,209.03,13.61799]
[1731298242652,13.61799,209.12,209.05,13.61799]
[1731298242854,13.61799,209.13,209.06,13.61799]
[1731298243150,29.32319,209.14,209.07,13.61799]
[1731298243351,13.61799,209.13,209.06,13.61799]
[1731298243568,13.61799,209.11,209.05,6.15151743]
[1731298243883,13.61799,209.12,209.05,19.76950743]
[1731298244071,37.394874,209.13,209.05,19.76950743]
[1731298244257,13.61799,209.13,209.06,13.61799]
[1731298244455,13.61799,209.13,209.05,19.76950743]
[1731298244663,13.61799,209.12,209.05,19.76950743]
[1731298244867,13.61799,209.11,209.05,6.15151743]
[1731298245064,13.61799,209.09,209.02,20.0]
[1731298245953,13.61799,209.08,209.01,13.61799]
[1731298246153,13.61799,209.08,209.0,13.61799]
[1731298246550,13.61799,209.07,209.0,13.61799]
[1731298246755,13.61799,209.08,209.01,13.61799]
[1731298247179,13.61799,209.08,209.0,13.61799]
[1731298249359,13.61799,209.05,208.98,13.61799]
[1731298250076,13.61799,209.06,208.99,13.61799]
[1731298252482,23.776884,209.05,208.98,13.61799]
[1731298252680,23.776884,209.06,209.0,13.61799]
[1731298253186,37.394874,209.06,208.99,13.61799]
[1731298253382,23.776884,209.06,209.0,13.61799]
[1731298255079,23.776884,209.06,208.99,13.61799]
[1731298255659,23.776884,209.06,209.0,13.61799]
[1731298255861,23.776884,209.06,209.01,13.61799]
[1731298256082,37.394874,209.07,209.0,13.61799]
[1731298256292,13.61799,209.06,208.99,13.61799]
[1731298256786,13.61799,209.04,208.98,6.15151743]
[1731298256979,13.61799,209.01,208.98,6.15151743]
[1731298257176,13.61799,209.01,208.92,16.5923]
[1731298257177,23.776884,209.0,208.93,13.61799]
[1731298257570,23.776884,209.01,208.94,13.61799]
[1731298257984,37.394874,209.01,208.94,13.61799]
[1731298259275,37.394874,209.01,208.93,19.76950743]
[1731298259487,37.394874,209.01,208.94,13.61799]
[1731298260385,13.61799,209.0,208.93,6.15151743]
[1731298260689,23.776884,208.99,208.94,13.61799]
[1731298261190,23.776884,209.0,208.94,13.61799]
[1731298264181,37.394874,209.0,208.93,6.15151743]
[1731298264485,23.776884,208.97,208.93,6.15151743]
[1731298264679,23.776884,208.99,208.93,19.76950743]
[1731298265392,23.776884,209.01,208.95,13.61799]
[1731298265685,13.61799,208.99,208.93,6.15151743]
[1731298265988,13.61799,208.99,208.93,13.61799]
[1731298266178,23.776884,209.0,208.94,13.61799]
[1731298267188,23.776884,209.0,208.93,13.61799]
[1731298267880,37.394874,209.0,208.93,13.61799]
[1731298268389,37.394874,209.01,208.94,13.61799]
[1731298268767,37.394874,209.01,208.93,19.76950743]
[1731298268976,37.394874,209.01,208.9,6.2447]